[Event "Moscow-ch Women 2021"]
[Site "Moscow"]
[Date "2021.03.28"]
[Round "4.5"]
[White "Lyutsinger, Iren"]
[Black "Shvedova, Alexandra"]
[Result "0-1"]
[ECO "D00"]
[WhiteElo "1415"]
[BlackElo "1994"]
[Annotator "NA"]
[PlyCount "92"]
[EventDate "2021.03.25"]
[EventType "swiss"]
[EventCountry "RUS"]
[SourceTitle "playchess.com"]
[Source "ChessBase"]
[SourceQuality "1"]
[TimeControl "5400+30"]

1. d4 {[%emt 0:00:00]} d5 {[%emt 0:00:00]} 2. Bf4 {[%emt 0:00:00]} Nf6 {[%emt 0:00:00]} 3. e3 {[%emt 0:00:02]} c5 {[%emt 0:00:00]} 4. c3 {[%emt 0:00:06]} Nc6 {[%emt 0:00:00]} 5. Bd3 {[%emt 0:00:17]} Bg4 {[%emt 0:06:23]} 6. Ne2 {[%emt 0:00:32]} e6 {[%emt 0:01:19]} 7. Nd2 {[%emt 0:00:48]} Be7 {[%emt 0:01:29]} 8. O-O {[%emt 0:00:15]} O-O {[%emt 0:00:06]} 9. h3 {[%emt 0:00:01]} Bh5 {[%emt 0:00:14]} 10. a3 {[%emt 0:10:14]} a6 {[%emt 0:10:38]} 11. b4 {[%emt 0:04:30]} c4 {[%emt 0:05:18]} 12. Bb1 {[%emt 0:11:35]} b5 {[%emt 0:03:12]} 13. a4 {[%emt 0:02:44]} Qd7 {[%emt 0:06:37]} 14. a5 {[%emt 0:04:09]} Rac8 {[%emt 0:07:56]} 15. f3 {[%emt 0:04:23]} Rfd8 {[%emt 0:06:52]} 16. Bh2 {[%emt 0:03:56]} Bg6 {[%emt 0:02:31]} 17. Nf4 {[%emt 0:03:02]} Bxb1 {[%emt 0:01:26]} 18. Qxb1 {[%emt 0:00:27]} Qa7 {[%emt 0:02:07]} 19. Qe1 {[%emt 0:05:10]} e5 {[%emt 0:04:01]} 20. Ne2 {[%emt 0:02:07]} exd4 {[%emt 0:03:18]} 21. exd4 {[%emt 0:01:06]} Re8 {[%emt 0:03:38]} 22. Qf2 {[%emt 0:02:29]} Bxb4 {[%emt 0:14:12]} 23. cxb4 {[%emt 0:01:26]} Nxb4 {[%emt 0:00:04]} 24. Nf4 {[%emt 0:11:14]} Nc2 {[%emt 0:01:06]} 25. Rac1 {[%emt 0:02:55]} Nxd4 {[%emt 0:02:16]} 26. Kh1 {[%emt 0:02:30]} Nc6 {[%emt 0:06:06]} 27. Qh4 {[%emt 0:03:24]} d4 {[%emt 0:05:51]} 28. Ne4 {[%emt 0:01:03]} Nxe4 {[%emt 0:00:53]} 29. fxe4 {[%emt 0:00:22]} Qe7 {[%emt 0:02:44]} 30. Qg4 {[%emt 0:01:50]} Ne5 {[%emt 0:01:47]} 31. Qg3 {[%emt 0:01:31]} Ng6 {[%emt 0:00:17]} 32. Nd5 {[%emt 0:01:22]} Qxe4 {[%emt 0:00:41]} 33. Nb6 {[%emt 0:00:39]} Rcd8 {[%emt 0:00:30]} 34. Rce1 {[%emt 0:00:39]} Qh4 {[%emt 0:00:41]} 35. Rxe8+ {[%emt 0:01:35]} Rxe8 {[%emt 0:00:01]} 36. Qc7 {[%emt 0:00:01]} Qe7 {[%emt 0:00:22]} 37. Qc6 {[%emt 0:01:03]} d3 {[%emt 0:00:42]} 38. Nc8 {[%emt 0:01:38]} Qe2 {[%emt 0:00:38]} 39. Rg1 {[%emt 0:00:53]} d2 {[%emt 0:00:47]} 40. Bd6 {[%emt 0:00:01]} d1=Q {[%emt 0:03:17]} 41. Ne7+ {[%emt 0:01:46]} Rxe7 {[%emt 0:00:00]} 42. Kh2 {[%emt 0:01:24]} Qxd6+ {[%emt 0:00:00]} 43. Qxd6 {[%emt 0:00:01]} Qe5+ {[%emt 0:00:00]} 44. Qxe5 {[%emt 0:00:48]} Nxe5 {[%emt 0:00:00]} 45. Rd1 {[%emt 0:00:00]} Rd7 {[%emt 0:00:04]} 46. Re1 {[%emt 0:00:27]} f6 {[%emt 0:00:03]} 0-1

[Event "Moscow-ch Women 2021"]
[Site "Moscow"]
[Date "2021.03.28"]
[Round "4.6"]
[White "Dimitrova, Aleksandra"]
[Black "Cherepanova, Evita"]
[Result "1-0"]
[ECO "C18"]
[WhiteElo "2275"]
[BlackElo "1621"]
[Annotator "NA"]
[PlyCount "83"]
[EventDate "2021.03.25"]
[EventType "swiss"]
[EventCountry "RUS"]
[SourceTitle "playchess.com"]
[Source "ChessBase"]
[SourceQuality "1"]
[TimeControl "5400+30"]

1. e4 {[%emt 0:00:00]} e6 {[%emt 0:00:00]} 2. d4 {[%emt 0:00:00]} d5 {[%emt 0:00:00]} 3. Nc3 {[%emt 0:00:00]} Bb4 {[%emt 0:00:00]} 4. e5 {[%emt 0:00:00]} c5 {[%emt 0:00:00]} 5. a3 {[%emt 0:00:01]} Bxc3+ {[%emt 0:00:00]} 6. bxc3 {[%emt 0:00:04]} Qa5 {[%emt 0:00:00]} 7. Bd2 {[%emt 0:00:08]} Qa4 {[%emt 0:00:00]} 8. Qg4 {[%emt 0:00:14]} Kf8 {[%emt 0:00:01]} 9. Qd1 {[%emt 0:00:15]} Ne7 {[%emt 0:00:49]} 10. Nf3 {[%emt 0:02:52]} b6 {[%emt 0:02:09]} 11. dxc5 {[%emt 0:12:55]} bxc5 {[%emt 0:00:34]} 12. Bd3 {[%emt 0:00:56]} Ng6 {[%emt 0:09:39]} 13. O-O {[%emt 0:08:02]} Nf4 {[%emt 0:05:50]} 14. Be3 {[%emt 0:04:40]} Nd7 {[%emt 0:00:53]} 15. Ne1 {[%emt 0:22:02]} Nxd3 {[%emt 0:09:34]} 16. Nxd3 {[%emt 0:02:09]} Qc4 {[%emt 0:09:22]} 17. Qd2 {[%emt 0:01:38]} Bb7 {[%emt 0:06:51]} 18. Rab1 {[%emt 0:03:01]} Bc6 {[%emt 0:01:43]} 19. f4 {[%emt 0:09:14]} f5 {[%emt 0:03:40]} 20. Qf2 {[%emt 0:10:45]} Qxc3 {[%emt 0:06:07]} 21. Nxc5 {[%emt 0:00:56]} Ke7 {[%emt 0:04:08]} 22. Nxd7 {[%emt 0:01:09]} Kxd7 {[%emt 0:00:28]} 23. Bc5 {[%emt 0:01:07]} h5 {[%emt 0:13:08]} 24. Bd6 {[%emt 0:02:45]} h4 {[%emt 0:00:52]} 25. Rb3 {[%emt 0:00:08]} Qc4 {[%emt 0:00:24]} 26. Rh3 {[%emt 0:01:10]} g5 {[%emt 0:02:34]} 27. fxg5 {[%emt 0:00:18]} Qg4 {[%emt 0:00:18]} 28. g6 {[%emt 0:02:32]} d4 {[%emt 0:01:13]} 29. Bc5 {[%emt 0:02:32]} Kc7 {[%emt 0:04:57]} 30. Bxd4 {[%emt 0:04:21]} Qxg6 {[%emt 0:00:58]} 31. Rc3 {[%emt 0:02:30]} Rag8 {[%emt 0:01:16]} 32. Rxc6+ {[%emt 0:01:05]} Kxc6 {[%emt 0:00:02]} 33. Bxa7 {[%emt 0:00:08]} Qg4 {[%emt 0:09:21]} 34. Qc5+ {[%emt 0:01:13]} Kd7 {[%emt 0:00:24]} 35. Qd6+ {[%emt 0:00:31]} Kc8 {[%emt 0:01:12]} 36. Qc6+ {[%emt 0:00:26]} Kd8 {[%emt 0:00:08]} 37. Rb1 {[%emt 0:01:45]} Qxg2+ {[%emt 0:00:43]} 38. Qxg2 {[%emt 0:00:04]} Rxg2+ {[%emt 0:00:10]} 39. Kxg2 {[%emt 0:00:04]} Rg8+ {[%emt 0:00:11]} 40. Kf3 {[%emt 0:00:22]} Kd7 {[%emt 0:00:52]} 41. Rb8 {[%emt 0:00:48]} Rg4 {[%emt 0:00:17]} 42. Rb4 {[%emt 0:00:13]} 1-0

[Event "Moscow-ch Women 2021"]
[Site "Moscow"]
[Date "2021.03.28"]
[Round "4.7"]
[White "Kanevskaya, Anna"]
[Black "Antonova, Nadezhda"]
[Result "1/2-1/2"]
[ECO "D00"]
[WhiteElo "2130"]
[BlackElo "1877"]
[Annotator "NA"]
[PlyCount "149"]
[EventDate "2021.03.25"]
[EventType "swiss"]
[EventCountry "RUS"]
[SourceTitle "playchess.com"]
[Source "ChessBase"]
[SourceQuality "1"]
[TimeControl "5400+30"]

1. d4 {[%emt 0:14:31]} Nf6 {[%emt 0:00:00]} 2. Nf3 {[%emt 0:00:16]} g6 {[%emt 0:00:04]} 3. Nc3 {[%emt 0:00:13]} d5 {[%emt 0:00:07]} 4. Bf4 {[%emt 0:00:05]} Bg7 {[%emt 0:00:27]} 5. e3 {[%emt 0:00:06]} c6 {[%emt 0:06:42]} 6. Be2 {[%emt 0:00:20]} O-O {[%emt 0:00:51]} 7. Ne5 {[%emt 0:00:12]} Nfd7 {[%emt 0:00:49]} 8. Ng4 {[%emt 0:07:28]} h5 {[%emt 0:07:10]} 9. Ne5 {[%emt 0:03:11]} Nxe5 {[%emt 0:01:59]} 10. Bxe5 {[%emt 0:01:17]} f6 {[%emt 0:13:31]} 11. Bg3 {[%emt 0:01:27]} e5 {[%emt 0:00:22]} 12. f3 {[%emt 0:10:57]} Be6 {[%emt 0:06:58]} 13. Bd3 {[%emt 0:04:19]} Bf7 {[%emt 0:03:09]} 14. O-O {[%emt 0:04:11]} Nd7 {[%emt 0:00:52]} 15. Ne2 {[%emt 0:04:30]} Re8 {[%emt 0:03:19]} 16. c3 {[%emt 0:04:25]} e4 {[%emt 0:05:52]} 17. fxe4 {[%emt 0:03:44]} dxe4 {[%emt 0:00:03]} 18. Bc2 {[%emt 0:00:10]} Nb6 {[%emt 0:00:32]} 19. Nf4 {[%emt 0:09:43]} Nc4 {[%emt 0:10:19]} 20. Qc1 {[%emt 0:10:06]} g5 {[%emt 0:05:32]} 21. Ne2 {[%emt 0:01:35]} h4 {[%emt 0:01:32]} 22. Be1 {[%emt 0:02:31]} b5 {[%emt 0:01:22]} 23. b3 {[%emt 0:02:02]} Nd6 {[%emt 0:00:33]} 24. c4 {[%emt 0:01:15]} Qd7 {[%emt 0:05:21]} 25. Nc3 {[%emt 0:07:17]} f5 {[%emt 0:10:01]} 26. c5 {[%emt 0:00:32]} Nc8 {[%emt 0:00:25]} 27. b4 {[%emt 0:01:22]} Ne7 {[%emt 0:01:31]} 28. a4 {[%emt 0:04:22]} a6 {[%emt 0:04:38]} 29. Bd1 {[%emt 0:00:44]} Bg6 {[%emt 0:03:44]} 30. Be2 {[%emt 0:01:22]} Nd5 {[%emt 0:02:25]} 31. Nxd5 {[%emt 0:00:25]} Qxd5 {[%emt 0:00:01]} 32. Bc3 {[%emt 0:00:36]} Bh6 {[%emt 0:00:40]} 33. Bd2 {[%emt 0:00:25]} Rad8 {[%emt 0:00:51]} 34. Qd1 {[%emt 0:00:39]} Rf8 {[%emt 0:01:26]} 35. axb5 {[%emt 0:00:36]} axb5 {[%emt 0:04:22]} 36. Ra7 {[%emt 0:00:23]} f4 {[%emt 0:00:00]} 37. Bh5 {[%emt 0:00:37]} Bh7 {[%emt 0:00:00]} 38. Bg4 {[%emt 0:00:28]} Bg7 {[%emt 0:00:00]} 39. Re7 {[%emt 0:00:20]} Rf6 {[%emt 0:00:00]} 40. Re5 {[%emt 0:00:14]} Qc4 {[%emt 0:00:32]} 41. Rxg5 {[%emt 0:00:37]} Qd3 {[%emt 0:00:37]} 42. Be2 {[%emt 0:00:34]} Qa3 {[%emt 0:00:05]} 43. Qc1 {[%emt 0:00:43]} Qa2 {[%emt 0:01:09]} 44. exf4 {[%emt 0:00:36]} e3 {[%emt 0:00:06]} 45. Bc3 {[%emt 0:00:27]} Qxe2 {[%emt 0:00:37]} 46. d5 {[%emt 0:00:10]} Rg6 {[%emt 0:00:33]} 47. Bxg7 {[%emt 0:00:48]} Rxg5 {[%emt 0:00:28]} 48. fxg5 {[%emt 0:00:13]} Be4 {[%emt 0:00:01]} 49. Qb2 {[%emt 0:00:06]} Qxb2 {[%emt 0:01:46]} 50. Bxb2 {[%emt 0:00:04]} Rxd5 {[%emt 0:00:02]} 51. Re1 {[%emt 0:01:21]} Rxg5 {[%emt 0:01:23]} 52. Rxe3 {[%emt 0:00:44]} Rxg2+ {[%emt 0:00:05]} 53. Kf1 {[%emt 0:00:02]} Bd5 {[%emt 0:00:56]} 54. Be5 {[%emt 0:00:22]} Rg4 {[%emt 0:00:12]} 55. Bc3 {[%emt 0:00:30]} Kf7 {[%emt 0:00:27]} 56. h3 {[%emt 0:01:12]} Rf4+ {[%emt 0:00:42]} 57. Kg1 {[%emt 0:00:16]} Kg6 {[%emt 0:00:35]} 58. Bd2 {[%emt 0:00:36]} Rd4 {[%emt 0:00:28]} 59. Be1 {[%emt 0:00:29]} Kg5 {[%emt 0:00:25]} 60. Kf2 {[%emt 0:00:37]} Rf4+ {[%emt 0:00:45]} 61. Kg1 {[%emt 0:00:12]} Rc4 {[%emt 0:00:22]} 62. Re8 {[%emt 0:00:38]} Kf4 {[%emt 0:00:25]} 63. Kf2 {[%emt 0:00:37]} Rc2+ {[%emt 0:00:15]} 64. Re2 {[%emt 0:00:07]} Rc4 {[%emt 0:00:42]} 65. Re8 {[%emt 0:00:19]} Be4 {[%emt 0:00:06]} 66. Rf8+ {[%emt 0:00:37]} Bf5 {[%emt 0:00:21]} 67. Bd2+ {[%emt 0:00:34]} Ke4 {[%emt 0:00:20]} 68. Ke2 {[%emt 0:00:56]} Rc2 {[%emt 0:01:18]} 69. Rh8 {[%emt 0:00:17]} Kd4 {[%emt 0:00:43]} 70. Rxh4+ {[%emt 0:00:07]} Be4 {[%emt 0:00:01]} 71. Rf4 {[%emt 0:00:44]} Ke5 {[%emt 0:00:17]} 72. Rh4 {[%emt 0:00:12]} Kd4 {[%emt 0:00:42]} 73. Rf4 {[%emt 0:00:06]} Ke5 {[%emt 0:00:07]} 74. Ke1 {[%emt 0:02:11]} Bg2 75. Bc1 1/2-1/2

[Event "Moscow-ch Women 2021"]
[Site "Moscow"]
[Date "2021.03.28"]
[Round "4.8"]
[White "Danilova, Rada"]
[Black "Korovina, Yana"]
[Result "1-0"]
[ECO "A52"]
[WhiteElo "2048"]
[BlackElo "1531"]
[Annotator "NA"]
[PlyCount "68"]
[EventDate "2021.03.25"]
[EventType "swiss"]
[EventCountry "RUS"]
[SourceTitle "playchess.com"]
[Source "ChessBase"]
[SourceQuality "1"]
[TimeControl "5400+30"]

1. d4 {[%emt 0:00:00]} Nf6 {[%emt 0:00:00]} 2. c4 {[%emt 0:00:00]} e5 {[%emt 0:00:00]} 3. dxe5 {[%emt 0:00:00]} Ng4 {[%emt 0:00:00]} 4. Nf3 {[%emt 0:00:00]} Nc6 {[%emt 0:00:00]} 5. Bf4 {[%emt 0:04:06]} Bb4+ {[%emt 0:00:00]} 6. Nbd2 {[%emt 0:00:51]} Qe7 {[%emt 0:00:00]} 7. e3 {[%emt 0:01:38]} Ngxe5 {[%emt 0:00:22]} 8. Be2 {[%emt 0:00:39]} d6 {[%emt 0:01:24]} 9. O-O {[%emt 0:01:47]} Bxd2 {[%emt 0:00:11]} 10. Qxd2 {[%emt 0:02:12]} O-O {[%emt 0:00:41]} 11. Nd4 {[%emt 0:06:14]} h6 {[%emt 0:08:32]} 12. Bg3 {[%emt 0:01:23]} Nxd4 {[%emt 0:04:25]} 13. exd4 {[%emt 0:00:40]} Ng6 {[%emt 0:00:49]} 14. Rfe1 {[%emt 0:04:02]} Qf6 {[%emt 0:02:54]} 15. Bf3 {[%emt 0:01:31]} Rb8 {[%emt 0:03:46]} 16. Rad1 {[%emt 0:02:34]} Bf5 {[%emt 0:03:23]} 17. Qa5 {[%emt 0:01:42]} b6 {[%emt 0:10:51]} 18. Qxa7 {[%emt 0:01:55]} Qd8 {[%emt 0:01:15]} 19. Qa3 {[%emt 0:01:42]} Re8 {[%emt 0:03:05]} 20. Rxe8+ {[%emt 0:01:36]} Qxe8 {[%emt 0:00:02]} 21. Qc3 {[%emt 0:00:52]} Qf8 {[%emt 0:04:26]} 22. b4 {[%emt 0:01:30]} Rd8 {[%emt 0:06:07]} 23. a4 {[%emt 0:00:52]} c5 {[%emt 0:04:38]} 24. bxc5 {[%emt 0:03:56]} dxc5 {[%emt 0:00:36]} 25. d5 {[%emt 0:00:27]} Ra8 {[%emt 0:01:10]} 26. d6 {[%emt 0:00:46]} Rxa4 {[%emt 0:00:49]} 27. d7 {[%emt 0:00:42]} Qd8 {[%emt 0:01:12]} 28. Bc7 {[%emt 0:01:21]} Qxd7 {[%emt 0:03:06]} 29. Rxd7 {[%emt 0:00:16]} Bxd7 {[%emt 0:00:05]} 30. h3 {[%emt 0:00:22]} b5 {[%emt 0:00:40]} 31. cxb5 {[%emt 0:00:15]} Bxb5 {[%emt 0:00:08]} 32. Qxc5 {[%emt 0:00:13]} Rc4 {[%emt 0:00:13]} 33. Qxb5 {[%emt 0:00:07]} Rxc7 {[%emt 0:00:03]} 34. Qc4 {[%emt 1:00:49]} Kf8 {[%emt 0:00:38]} 1-0

[Event "Moscow-ch Women 2021"]
[Site "Moscow"]
[Date "2021.03.28"]
[Round "4.9"]
[White "Kuznetsova, Veronika"]
[Black "Mayorova, Varvara"]
[Result "0-1"]
[ECO "B26"]
[WhiteElo "1343"]
[BlackElo "1545"]
[Annotator "NA"]
[PlyCount "128"]
[EventDate "2021.03.25"]
[EventType "swiss"]
[EventCountry "RUS"]
[SourceTitle "playchess.com"]
[Source "ChessBase"]
[SourceQuality "1"]
[TimeControl "5400+30"]

1. e4 {[%emt 0:00:00]} c5 {[%emt 0:10:36]} 2. Nc3 {[%emt 0:00:00]} Nc6 {[%emt 0:00:20]} 3. g3 {[%emt 0:00:00]} g6 {[%emt 0:00:05]} 4. Bg2 {[%emt 0:00:00]} Bg7 {[%emt 0:00:05]} 5. d3 {[%emt 0:00:00]} d6 {[%emt 0:00:27]} 6. Be3 {[%emt 0:00:12]} e6 {[%emt 0:00:46]} 7. Qd2 {[%emt 0:00:11]} Qa5 {[%emt 0:00:53]} 8. Nf3 {[%emt 0:01:29]} Nd4 {[%emt 0:00:51]} 9. O-O {[%emt 0:00:56]} Ne7 {[%emt 0:00:37]} 10. Rac1 {[%emt 0:02:31]} O-O {[%emt 0:11:16]} 11. Nxd4 {[%emt 0:13:04]} cxd4 {[%emt 0:00:57]} 12. Nd5 {[%emt 0:00:58]} Qd8 {[%emt 0:03:05]} 13. Nxe7+ {[%emt 0:00:16]} Qxe7 {[%emt 0:00:06]} 14. Bh6 {[%emt 0:00:45]} e5 {[%emt 0:04:27]} 15. Bxg7 {[%emt 0:00:38]} Kxg7 {[%emt 0:00:08]} 16. c3 {[%emt 0:00:53]} dxc3 {[%emt 0:04:31]} 17. Rxc3 {[%emt 0:00:22]} Be6 {[%emt 0:00:59]} 18. Rfc1 {[%emt 0:01:34]} Rfc8 {[%emt 0:01:03]} 19. d4 {[%emt 0:07:23]} Rxc3 {[%emt 0:03:36]} 20. Rxc3 {[%emt 0:02:44]} Rc8 {[%emt 0:01:27]} 21. Rxc8 {[%emt 0:01:09]} Bxc8 {[%emt 0:00:08]} 22. Qc3 {[%emt 0:00:10]} Qe8 {[%emt 0:02:40]} 23. a3 {[%emt 0:14:13]} b5 {[%emt 0:02:31]} 24. Bf1 {[%emt 0:04:34]} a6 {[%emt 0:03:23]} 25. Bd3 {[%emt 0:02:39]} Bb7 {[%emt 0:00:57]} 26. d5 {[%emt 0:05:06]} Qc8 {[%emt 0:01:02]} 27. Qxc8 {[%emt 0:00:51]} Bxc8 {[%emt 0:00:06]} 28. f4 {[%emt 0:03:14]} f5 {[%emt 0:01:57]} 29. Kf2 {[%emt 0:05:15]} fxe4 {[%emt 0:08:57]} 30. Bxe4 {[%emt 0:00:06]} Bf5 {[%emt 0:01:00]} 31. Bg2 {[%emt 0:01:47]} exf4 {[%emt 0:03:23]} 32. gxf4 {[%emt 0:00:07]} Kf6 {[%emt 0:00:41]} 33. Ke3 {[%emt 0:00:10]} Bc2 {[%emt 0:03:22]} 34. b4 {[%emt 0:03:08]} g5 {[%emt 0:02:21]} 35. fxg5+ {[%emt 0:05:29]} Kxg5 {[%emt 0:00:22]} 36. Bh3 {[%emt 0:01:32]} Bf5 {[%emt 0:01:06]} 37. Bg2 {[%emt 0:02:48]} h5 {[%emt 0:03:14]} 38. Bf1 {[%emt 0:02:48]} Bg4 {[%emt 0:04:42]} 39. Bd3 {[%emt 0:01:21]} Bf5 {[%emt 0:03:46]} 40. Bf1 {[%emt 0:02:31]} h4 {[%emt 0:02:23]} 41. Be2 {[%emt 0:00:49]} Bb1 {[%emt 0:00:42]} 42. Bf1 {[%emt 0:07:57]} Kf5 {[%emt 0:01:16]} 43. Kd4 {[%emt 0:01:25]} Kf4 {[%emt 0:01:29]} 44. Bg2 {[%emt 0:04:55]} Bf5 {[%emt 0:00:23]} 45. Bf1 {[%emt 0:03:56]} Kf3 {[%emt 0:00:19]} 46. a4 {[%emt 0:00:09]} bxa4 {[%emt 0:07:35]} 47. Bxa6 {[%emt 0:00:08]} a3 {[%emt 0:00:18]} 48. Kc3 {[%emt 0:00:37]} a2 {[%emt 0:02:25]} 49. Kb2 {[%emt 0:00:04]} Kg2 {[%emt 0:00:38]} 50. Kxa2 {[%emt 0:00:44]} Kxh2 {[%emt 0:00:06]} 51. Kb3 {[%emt 0:01:07]} Kg2 {[%emt 0:01:07]} 52. Kc4 {[%emt 0:00:43]} h3 {[%emt 0:00:34]} 53. b5 {[%emt 0:00:02]} h2 {[%emt 0:00:16]} 54. b6 {[%emt 0:00:03]} h1=Q {[%emt 0:00:14]} 55. b7 {[%emt 0:00:15]} Qh8 {[%emt 0:00:52]} 56. Bb5 {[%emt 0:01:12]} Qb8 {[%emt 0:00:36]} 57. Bc6 {[%emt 0:00:05]} Kf3 {[%emt 0:00:36]} 58. Kd4 {[%emt 0:00:08]} Kf4 {[%emt 0:00:28]} 59. Kc3 {[%emt 0:00:11]} Ke5 {[%emt 0:00:25]} 60. Kc4 {[%emt 0:00:06]} Be4 {[%emt 0:00:19]} 61. Kb5 {[%emt 0:00:41]} Bxd5 {[%emt 0:00:16]} 62. Kb6 {[%emt 0:00:25]} Bxc6 {[%emt 0:00:13]} 63. Kxc6 {[%emt 0:00:15]} Qxb7+ {[%emt 0:00:32]} 64. Kxb7 {[%emt 0:00:05]} d5 {[%emt 0:00:08]} 0-1

[Event "Moscow-ch Women 2021"]
[Site "Moscow"]
[Date "2021.03.28"]
[Round "4.10"]
[White "Gerasimova, Maria V."]
[Black "Kunikova, Polina S"]
[Result "0-1"]
[ECO "C30"]
[WhiteElo "1166"]
[BlackElo "1028"]
[Annotator "NA"]
[PlyCount "64"]
[EventDate "2021.03.25"]
[EventType "swiss"]
[EventCountry "RUS"]
[SourceTitle "playchess.com"]
[Source "ChessBase"]
[SourceQuality "1"]
[TimeControl "5400+30"]

1. e4 {[%emt 0:00:00]} e5 {[%emt 0:00:00]} 2. Bc4 {[%emt 0:00:21]} Nc6 {[%emt 0:00:00]} 3. Nc3 {[%emt 0:00:24]} Nf6 {[%emt 0:00:17]} 4. d3 {[%emt 0:00:24]} Bc5 {[%emt 0:00:10]} 5. f4 {[%emt 1:31:21]} d6 {[%emt 0:03:08]} 6. Nf3 {[%emt 0:00:00]} O-O {[%emt 0:02:36]} 7. Na4 {[%emt 0:00:00]} Bb6 {[%emt 0:03:36]} 8. Nxb6 {[%emt 0:00:00]} axb6 {[%emt 0:00:17]} 9. O-O {[%emt 0:00:00]} Bg4 {[%emt 0:00:27]} 10. h3 {[%emt 0:00:00]} b5 {[%emt 0:02:04]} 11. Bxb5 {[%emt 0:00:00]} Bxf3 {[%emt 0:00:16]} 12. gxf3 {[%emt 0:00:00]} Nd4 {[%emt 0:01:39]} 13. Bc4 {[%emt 0:00:00]} Nh5 {[%emt 0:01:44]} 14. fxe5 {[%emt 0:00:00]} Qh4 {[%emt 0:03:07]} 15. Rf2 {[%emt 0:00:00]} Qxh3 {[%emt 0:02:18]} 16. c3 {[%emt 0:00:00]} Ng3 {[%emt 0:04:25]} 17. Rh2 {[%emt 0:00:00]} Nde2+ {[%emt 0:00:27]} 18. Rxe2 {[%emt 0:00:00]} Qh1+ {[%emt 0:00:18]} 19. Kf2 {[%emt 0:00:00]} Qxd1 {[%emt 0:00:29]} 20. Rd2 {[%emt 0:00:00]} Nh1+ {[%emt 0:00:55]} 21. Kg2 {[%emt 0:00:00]} Qe1 {[%emt 0:00:14]} 22. Rc2 {[%emt 0:00:00]} Qh4 {[%emt 0:01:08]} 23. exd6 {[%emt 0:00:00]} cxd6 {[%emt 0:00:30]} 24. Bd5 {[%emt 0:00:00]} Ra5 {[%emt 0:01:38]} 25. b4 {[%emt 0:00:00]} Rxd5 {[%emt 0:01:39]} 26. exd5 {[%emt 0:00:00]} Re8 {[%emt 0:00:14]} 27. Ba3 {[%emt 0:00:00]} Ng3 {[%emt 0:00:31]} 28. b5 {[%emt 0:00:00]} Nf5 {[%emt 0:00:32]} 29. Rb2 {[%emt 0:00:00]} Qg3+ {[%emt 0:00:56]} 30. Kh1 {[%emt 0:00:00]} Qxf3+ {[%emt 0:00:24]} 31. Kg1 {[%emt 0:00:00]} Ng3 {[%emt 0:00:44]} 32. Rg2 {[%emt 0:00:00]} Ne2+ {[%emt 0:00:44]} 0-1

[Event "Moscow-ch Women 2021"]
[Site "Moscow"]
[Date "2021.03.29"]
[Round "5.1"]
[White "Charochkina, Daria"]
[Black "Diakonova, Ekaterina"]
[Result "1-0"]
[ECO "D52"]
[WhiteElo "2337"]
[BlackElo "2156"]
[Annotator "NA"]
[PlyCount "55"]
[EventDate "2021.03.25"]
[EventType "swiss"]
[EventCountry "RUS"]
[SourceTitle "playchess.com"]
[Source "ChessBase"]
[SourceQuality "1"]
[TimeControl "5400+30"]

1. d4 {[%emt 0:00:00]} d5 {[%emt 0:00:00]} 2. c4 {[%emt 0:00:00]} c6 {[%emt 0:00:00]} 3. Nc3 {[%emt 0:00:00]} Nf6 {[%emt 0:00:00]} 4. Nf3 {[%emt 0:00:00]} e6 {[%emt 0:00:00]} 5. Bg5 {[%emt 0:00:09]} Nbd7 {[%emt 0:00:00]} 6. e3 {[%emt 0:00:11]} Qa5 {[%emt 0:00:00]} 7. Nd2 {[%emt 0:00:23]} Bb4 {[%emt 0:01:09]} 8. Qc2 {[%emt 0:00:11]} O-O {[%emt 0:06:22]} 9. Be2 {[%emt 0:00:45]} c5 {[%emt 0:01:22]} 10. O-O {[%emt 0:00:08]} cxd4 {[%emt 0:04:57]} 11. exd4 {[%emt 0:00:12]} dxc4 {[%emt 0:12:27]} 12. Bh4 {[%emt 0:00:22]} Nd5 {[%emt 0:13:32]} 13. Nxc4 {[%emt 0:06:43]} Qc7 {[%emt 0:00:45]} 14. Nxd5 {[%emt 0:24:01]} exd5 {[%emt 0:00:05]} 15. Qb3 {[%emt 0:00:10]} dxc4 {[%emt 0:20:05]} 16. Qxb4 {[%emt 0:00:24]} Nb6 {[%emt 0:00:19]} 17. Qc5 {[%emt 0:00:56]} Qf4 {[%emt 0:05:40]} 18. Bg3 {[%emt 0:14:39]} Qd2 {[%emt 0:02:51]} 19. Bf3 {[%emt 0:00:06]} Qxb2 {[%emt 0:00:59]} 20. a4 {[%emt 0:00:15]} Be6 {[%emt 0:02:04]} 21. Rfb1 {[%emt 0:15:51]} Qc2 {[%emt 0:02:48]} 22. Bxb7 {[%emt 0:06:14]} Nxa4 {[%emt 0:01:06]} 23. Qb4 {[%emt 0:03:03]} Nb6 {[%emt 0:08:08]} 24. Bxa8 {[%emt 0:09:01]} Nxa8 {[%emt 0:00:04]} 25. Rxa7 {[%emt 0:00:33]} Qf5 {[%emt 0:05:31]} 26. d5 {[%emt 0:10:26]} Bd7 {[%emt 0:01:22]} 27. Bd6 {[%emt 0:02:39]} Rc8 {[%emt 0:02:04]} 28. Rba1 {[%emt 0:02:01]} 1-0

[Event "Moscow-ch Women 2021"]
[Site "Moscow"]
[Date "2021.03.29"]
[Round "5.2"]
[White "Paramzina, Anastasya"]
[Black "Zvereva, Margarita"]
[Result "1/2-1/2"]
[ECO "C54"]
[WhiteElo "2252"]
[BlackElo "1951"]
[Annotator "NA"]
[PlyCount "79"]
[EventDate "2021.03.25"]
[EventType "swiss"]
[EventCountry "RUS"]
[SourceTitle "playchess.com"]
[Source "ChessBase"]
[SourceQuality "1"]
[TimeControl "5400+30"]

1. e4 {[%emt 0:13:27]} e5 {[%emt 0:00:00]} 2. Nf3 {[%emt 0:00:04]} Nc6 {[%emt 0:00:00]} 3. Bc4 {[%emt 0:00:03]} Bc5 {[%emt 0:00:00]} 4. O-O {[%emt 0:00:18]} Nf6 {[%emt 0:00:17]} 5. d3 {[%emt 0:00:05]} d6 {[%emt 0:00:09]} 6. c3 {[%emt 0:00:57]} a6 {[%emt 0:00:21]} 7. a4 {[%emt 0:00:15]} Ba7 {[%emt 0:00:29]} 8. Nbd2 {[%emt 0:01:16]} O-O {[%emt 0:01:18]} 9. h3 {[%emt 0:00:06]} Ne7 {[%emt 0:00:28]} 10. Bb3 {[%emt 0:01:30]} Ng6 {[%emt 0:01:15]} 11. Nc4 {[%emt 0:05:19]} h6 {[%emt 0:03:33]} 12. Be3 {[%emt 0:00:50]} Bxe3 {[%emt 0:00:32]} 13. Nxe3 {[%emt 0:00:05]} Re8 {[%emt 0:04:24]} 14. a5 {[%emt 0:00:36]} Be6 {[%emt 0:01:26]} 15. Bxe6 {[%emt 0:00:07]} Rxe6 {[%emt 0:00:13]} 16. Qb3 {[%emt 0:00:44]} Rb8 {[%emt 0:03:52]} 17. Ne1 {[%emt 0:03:57]} c6 {[%emt 0:07:16]} 18. N1c2 {[%emt 0:06:01]} d5 {[%emt 0:03:31]} 19. Rfd1 {[%emt 0:04:10]} Rd6 {[%emt 0:05:40]} 20. exd5 {[%emt 0:02:01]} Nxd5 {[%emt 0:04:03]} 21. d4 {[%emt 0:03:11]} Nxe3 {[%emt 0:11:11]} 22. Nxe3 {[%emt 0:03:24]} exd4 {[%emt 0:00:42]} 23. Nf5 {[%emt 0:01:12]} Rd5 {[%emt 0:00:42]} 24. Rxd4 {[%emt 0:01:32]} Rxd4 {[%emt 0:05:36]} 25. Nxd4 {[%emt 0:00:08]} Nf4 {[%emt 0:03:44]} 26. Kh2 {[%emt 0:03:36]} c5 {[%emt 0:06:12]} 27. Nf3 {[%emt 0:02:51]} Qc7 {[%emt 0:02:32]} 28. Qc4 {[%emt 0:02:00]} Nd3+ {[%emt 0:05:51]} 29. Kg1 {[%emt 0:00:14]} Rd8 {[%emt 0:00:49]} 30. Rd1 {[%emt 0:04:36]} Nxb2 {[%emt 0:00:15]} 31. Rxd8+ {[%emt 0:00:04]} Qxd8 {[%emt 0:00:03]} 32. Qxc5 {[%emt 0:00:09]} Nd3 {[%emt 0:09:23]} 33. Qe3 {[%emt 0:04:03]} Qd5 {[%emt 0:01:13]} 34. h4 {[%emt 0:12:45]} Nc5 {[%emt 0:00:53]} 35. Qe8+ {[%emt 0:02:11]} Kh7 {[%emt 0:00:04]} 36. Qe7 {[%emt 0:05:12]} Ne4 {[%emt 0:03:54]} 37. Ne5 {[%emt 0:03:15]} Nxc3 {[%emt 0:13:12]} 38. Nxf7 {[%emt 0:00:26]} Ne2+ {[%emt 0:00:22]} 39. Qxe2 {[%emt 0:03:19]} Qxf7 {[%emt 0:00:03]} 40. Qe5 {[%emt 0:00:13]} 1/2-1/2